[Event "*** SCC Grand Prix: Titled Tuesday Blitz"]
[Site "Chess.com"]
[Date "2020.07.07"]
[Round "9"]
[White "SerGo055"]
[Black "FlamingPhoenix123"]
[Result "1-0"]
[WhiteElo "2559"]
[BlackElo "2421"]
[TimeControl "180+1"]
[EndTime "11:45:08 PDT"]
[Termination "SerGo055 won by resignation"]

1. d4 {[%clk 0:02:55.2]} 1... Nf6 {[%clk 0:02:59.3]} 2. Nf3 {[%clk 0:02:45.7]}
2... e6 {[%clk 0:02:58.5]} 3. c4 {[%clk 0:02:39.1]} 3... d5 {[%clk 0:02:57.5]}
4. Nc3 {[%clk 0:02:38.1]} 4... Be7 {[%clk 0:02:57.1]} 5. Bg5 {[%clk 0:02:36.9]}
5... h6 {[%clk 0:02:56.8]} 6. Bh4 {[%clk 0:02:36]} 6... O-O {[%clk 0:02:56.1]}
7. e3 {[%clk 0:02:35.5]} 7... b6 {[%clk 0:02:46.7]} 8. cxd5 {[%clk 0:02:30.6]}
8... Nxd5 {[%clk 0:02:47.6]} 9. Bxe7 {[%clk 0:02:28.8]} 9... Qxe7 {[%clk
0:02:40.7]} 10. Nxd5 {[%clk 0:02:25.7]} 10... exd5 {[%clk 0:02:41.6]} 11. Rc1
{[%clk 0:02:23.4]} 11... Be6 {[%clk 0:02:39.7]} 12. Bd3 {[%clk 0:02:13.9]} 12...
c5 {[%clk 0:02:36.3]} 13. dxc5 {[%clk 0:02:10.6]} 13... bxc5 {[%clk 0:02:37.2]}
14. Qc2 {[%clk 0:02:10.6]} 14... c4 {[%clk 0:02:25.6]} 15. Be2 {[%clk 0:01:51]}
15... Nc6 {[%clk 0:02:21.3]} 16. O-O {[%clk 0:01:50.4]} 16... Rab8 {[%clk
0:02:17.8]} 17. Rfd1 {[%clk 0:01:49.8]} 17... Qf6 {[%clk 0:02:14.5]} 18. Nd4
{[%clk 0:01:45.6]} 18... Nxd4 {[%clk 0:02:09.2]} 19. Rxd4 {[%clk 0:01:44.5]}
19... Rb6 {[%clk 0:02:08.3]} 20. b3 {[%clk 0:01:31.5]} 20... cxb3 {[%clk
0:02:00.1]} 21. axb3 {[%clk 0:01:32.4]} 21... Rc8 {[%clk 0:02:00.6]} 22. Qb2
{[%clk 0:01:06.4]} 22... Rxc1+ {[%clk 0:01:54.7]} 23. Qxc1 {[%clk 0:01:07.3]}
23... Rxb3 {[%clk 0:01:54.9]} 24. h3 {[%clk 0:01:03.3]} 24... Qe7 {[%clk
0:01:45.9]} 25. Ra4 {[%clk 0:00:54.9]} 25... Qb7 {[%clk 0:01:43.9]} 26. Qc5
{[%clk 0:00:41.6]} 26... Rb1+ {[%clk 0:01:34.9]} 27. Kh2 {[%clk 0:00:41.1]}
27... Qb8+ {[%clk 0:01:34.7]} 28. f4 {[%clk 0:00:36.1]} 28... Qb6 {[%clk
0:01:08.7]} 29. Qxb6 {[%clk 0:00:31.2]} 29... axb6 {[%clk 0:01:09.6]} 30. Ra8+
{[%clk 0:00:31]} 30... Kh7 {[%clk 0:01:09.8]} 31. Bd3+ {[%clk 0:00:30.9]} 1-0

[Event "*** SCC Grand Prix: Titled Tuesday Blitz"]
[Site "Chess.com"]
[Date "2020.07.07"]
[Round "9"]
[White "TigranMukhutdinov"]
[Black "frederiksvane"]
[Result "1-0"]
[WhiteElo "2545"]
[BlackElo "2653"]
[TimeControl "180+1"]
[EndTime "11:45:10 PDT"]
[Termination "TigranMukhutdinov won on time"]

1. Nf3 {[%clk 0:03:00.9]} 1... Nf6 {[%clk 0:03:00.1]} 2. g3 {[%clk 0:03:01.1]}
2... g6 {[%clk 0:02:57.5]} 3. b3 {[%clk 0:03:01.1]} 3... Bg7 {[%clk 0:02:57.6]}
4. Bb2 {[%clk 0:03:01.6]} 4... b6 {[%clk 0:02:58.2]} 5. Bg2 {[%clk 0:03:01.1]}
5... Bb7 {[%clk 0:02:58.7]} 6. O-O {[%clk 0:03:01.7]} 6... c5 {[%clk 0:02:56.2]}
7. c4 {[%clk 0:03:01.4]} 7... Nc6 {[%clk 0:02:56.4]} 8. d4 {[%clk 0:02:54.8]}
8... Nxd4 {[%clk 0:02:54.3]} 9. Nxd4 {[%clk 0:02:53.6]} 9... Bxg2 {[%clk
0:02:54.1]} 10. Kxg2 {[%clk 0:02:54.5]} 10... cxd4 {[%clk 0:02:54.2]} 11. Qxd4
{[%clk 0:02:55]} 11... O-O {[%clk 0:02:53.8]} 12. Nc3 {[%clk 0:02:50.8]} 12...
Qc7 {[%clk 0:02:50.8]} 13. e4 {[%clk 0:02:49.2]} 13... Qb7 {[%clk 0:02:48.2]}
14. Nd5 {[%clk 0:02:47.1]} 14... d6 {[%clk 0:02:43.9]} 15. Rfe1 {[%clk
0:02:42.3]} 15... Rac8 {[%clk 0:02:28.7]} 16. Rad1 {[%clk 0:02:38]} 16... Rfe8
{[%clk 0:02:16.4]} 17. a4 {[%clk 0:02:35.2]} 17... Qc6 {[%clk 0:01:27.3]} 18. f3
{[%clk 0:02:31.3]} 18... Qb7 {[%clk 0:01:16.5]} 19. h4 {[%clk 0:02:26.6]} 19...
h5 {[%clk 0:00:59.4]} 20. Qd2 {[%clk 0:02:13.4]} 20... Nxd5 {[%clk 0:00:48.4]}
21. Bxg7 {[%clk 0:02:14.3]} 21... Kxg7 {[%clk 0:00:48.8]} 22. exd5 {[%clk
0:02:12.4]} 22... a6 {[%clk 0:00:46.7]} 23. Qd4+ {[%clk 0:02:11.5]} 23... f6
{[%clk 0:00:33.5]} 24. g4 {[%clk 0:02:07]} 24... hxg4 {[%clk 0:00:20.3]} 25.
Qxg4 {[%clk 0:02:06.2]} 25... b5 {[%clk 0:00:04.3]} 26. h5 {[%clk 0:02:03.1]}
26... g5 {[%clk 0:00:04.6]} 27. f4 {[%clk 0:01:55]} 27... bxc4 {[%clk
0:00:04.5]} 28. fxg5 {[%clk 0:01:42.3]} 28... fxg5 {[%clk 0:00:03.1]} 29. Re6
{[%clk 0:01:37.2]} 29... Rg8 {[%clk 0:00:01.9]} 30. Rg6+ {[%clk 0:01:33.1]}
30... Kf7 {[%clk 0:00:01.9]} 31. Qxg5 {[%clk 0:01:28.7]} 1-0

[Event "*** SCC Grand Prix: Titled Tuesday Blitz"]
[Site "Chess.com"]
[Date "2020.07.07"]
[Round "9"]
[White "Lion-Al-Messi"]
[Black "barbara25"]
[Result "1-0"]
[WhiteElo "2453"]
[BlackElo "2326"]
[TimeControl "180+1"]
[EndTime "11:45:12 PDT"]
[Termination "Lion-Al-Messi won by checkmate"]

1. e4 {[%clk 0:01:24]} 1... c5 {[%clk 0:02:59.3]} 2. Nf3 {[%clk 0:01:23.4]} 2...
d6 {[%clk 0:02:59.4]} 3. d4 {[%clk 0:01:23.1]} 3... cxd4 {[%clk 0:02:58.8]} 4.
Nxd4 {[%clk 0:01:24]} 4... Nf6 {[%clk 0:02:58.7]} 5. Nc3 {[%clk 0:01:24.5]} 5...
a6 {[%clk 0:02:58.8]} 6. h3 {[%clk 0:01:24.7]} 6... e5 {[%clk 0:02:58.8]} 7.
Nde2 {[%clk 0:01:24.3]} 7... Be7 {[%clk 0:02:59]} 8. g4 {[%clk 0:01:24.4]} 8...
Be6 {[%clk 0:02:59.6]} 9. Bg2 {[%clk 0:01:21.4]} 9... Nc6 {[%clk 0:02:59]} 10.
O-O {[%clk 0:01:21.2]} 10... O-O {[%clk 0:02:58.8]} 11. Be3 {[%clk 0:01:21.4]}
11... b5 {[%clk 0:02:58.4]} 12. Ng3 {[%clk 0:01:21.1]} 12... Rc8 {[%clk
0:02:57.7]} 13. Nf5 {[%clk 0:01:18.2]} 13... Re8 {[%clk 0:02:54.4]} 14. Nd5
{[%clk 0:01:06]} 14... Bxd5 {[%clk 0:02:52.8]} 15. exd5 {[%clk 0:01:05.4]} 15...
Na5 {[%clk 0:02:49.1]} 16. b3 {[%clk 0:01:01.7]} 16... Qc7 {[%clk 0:02:46.4]}
17. Rc1 {[%clk 0:00:57.2]} 17... Nb7 {[%clk 0:02:44.9]} 18. c4 {[%clk
0:00:56.4]} 18... bxc4 {[%clk 0:02:42]} 19. Rxc4 {[%clk 0:00:57.3]} 19... Qd7
{[%clk 0:02:41.6]} 20. Qf3 {[%clk 0:00:48.5]} 20... Rxc4 {[%clk 0:02:37]} 21.
bxc4 {[%clk 0:00:49.4]} 21... Rc8 {[%clk 0:02:36.3]} 22. g5 {[%clk 0:00:48.5]}
22... Ne8 {[%clk 0:02:32.1]} 23. h4 {[%clk 0:00:48.1]} 23... Rxc4 {[%clk
0:02:28.5]} 24. Bh3 {[%clk 0:00:47.9]} 24... Qd8 {[%clk 0:02:25.4]} 25. Rb1
{[%clk 0:00:44]} 25... Nc5 {[%clk 0:01:57.3]} 26. Bxc5 {[%clk 0:00:15.5]} 26...
Rxc5 {[%clk 0:01:54.9]} 27. Rb8 {[%clk 0:00:14.3]} 27... Qxb8 {[%clk 0:01:50]}
28. Nxe7+ {[%clk 0:00:14]} 28... Kf8 {[%clk 0:01:49.9]} 29. Be6 {[%clk
0:00:13.9]} 29... f6 {[%clk 0:01:48]} 30. Qh5 {[%clk 0:00:13.6]} 30... Qb1+
{[%clk 0:01:44.6]} 31. Kh2 {[%clk 0:00:10.8]} 31... Kxe7 {[%clk 0:01:21.8]} 32.
Qf7+ {[%clk 0:00:10]} 32... Kd8 {[%clk 0:01:21.8]} 33. Qd7# {[%clk 0:00:10.9]}
1-0

[Event "*** SCC Grand Prix: Titled Tuesday Blitz"]
[Site "Chess.com"]
[Date "2020.07.07"]
[Round "9"]
[White "pavlitas17"]
[Black "Mikasinski"]
[Result "0-1"]
[WhiteElo "2300"]
[BlackElo "2447"]
[TimeControl "180+1"]
[EndTime "11:45:12 PDT"]
[Termination "Mikasinski won by resignation"]

1. d4 {[%clk 0:02:50.1]} 1... Nf6 {[%clk 0:02:59.4]} 2. c4 {[%clk 0:02:49.4]}
2... g6 {[%clk 0:02:59.8]} 3. Nc3 {[%clk 0:02:46.8]} 3... Bg7 {[%clk 0:03:00.1]}
4. e4 {[%clk 0:02:45]} 4... d6 {[%clk 0:03:00.6]} 5. Be2 {[%clk 0:02:44.6]} 5...
O-O {[%clk 0:03:00.7]} 6. Nf3 {[%clk 0:02:45]} 6... e5 {[%clk 0:03:00.5]} 7. Be3
{[%clk 0:02:43.6]} 7... Ng4 {[%clk 0:02:59.7]} 8. Bg5 {[%clk 0:02:42.7]} 8... f6
{[%clk 0:02:59.8]} 9. Bh4 {[%clk 0:02:42.7]} 9... g5 {[%clk 0:02:59.9]} 10. Bg3
{[%clk 0:02:42.8]} 10... Nc6 {[%clk 0:03:00.2]} 11. d5 {[%clk 0:02:42.2]} 11...
Ne7 {[%clk 0:03:00.3]} 12. Nd2 {[%clk 0:02:42.7]} 12... Nh6 {[%clk 0:02:49.7]}
13. f3 {[%clk 0:02:39.5]} 13... f5 {[%clk 0:02:49.5]} 14. Bf2 {[%clk 0:02:38.3]}
14... Ng6 {[%clk 0:02:43.5]} 15. h3 {[%clk 0:02:35.6]} 15... Nf4 {[%clk
0:02:41.5]} 16. g4 {[%clk 0:02:34.4]} 16... fxe4 {[%clk 0:02:35.9]} 17. Ndxe4
{[%clk 0:02:30.5]} 17... Ng2+ {[%clk 0:02:32.3]} 18. Kf1 {[%clk 0:02:29.6]}
18... Nf4 {[%clk 0:02:32.2]} 19. Rc1 {[%clk 0:02:25.7]} 19... b6 {[%clk
0:02:29.7]} 20. h4 {[%clk 0:02:25.8]} 20... gxh4 {[%clk 0:02:10]} 21. Bxh4
{[%clk 0:02:23.5]} 21... Qe8 {[%clk 0:02:09.3]} 22. Ke1 {[%clk 0:02:11]} 22...
Qg6 {[%clk 0:01:58.2]} 23. Kd2 {[%clk 0:02:07.3]} 23... Bd7 {[%clk 0:01:39.9]}
24. Kc2 {[%clk 0:02:03.8]} 24... c6 {[%clk 0:01:30.8]} 25. dxc6 {[%clk
0:01:59.3]} 25... Bxc6 {[%clk 0:01:30.6]} 26. Bd3 {[%clk 0:01:56]} 26... Nxd3
{[%clk 0:01:20.9]} 27. Qxd3 {[%clk 0:01:55.2]} 27... Rf7 {[%clk 0:00:49.6]} 28.
Nd5 {[%clk 0:01:47.1]} 28... Raf8 {[%clk 0:00:40.6]} 29. Ne7+ {[%clk 0:01:44.9]}
29... Rxe7 {[%clk 0:00:39.2]} 30. Bxe7 {[%clk 0:01:44.6]} 30... Rxf3 {[%clk
0:00:39]} 31. Nf6+ {[%clk 0:01:38.9]} 31... Rxf6 {[%clk 0:00:27.4]} 32. Qxg6
{[%clk 0:01:34.7]} 32... Rxg6 {[%clk 0:00:27.3]} 33. g5 {[%clk 0:01:30.4]} 33...
Nf5 {[%clk 0:00:26.9]} 34. Bf6 {[%clk 0:01:30.3]} 34... Bxh1 {[%clk 0:00:26.2]}
35. Rxh1 {[%clk 0:01:28]} 35... Bxf6 {[%clk 0:00:26.7]} 36. gxf6 {[%clk
0:01:28.7]} 36... Rxf6 {[%clk 0:00:26.8]} 37. Rg1+ {[%clk 0:01:26.4]} 37... Rg6
{[%clk 0:00:26.7]} 38. Rf1 {[%clk 0:01:27.3]} 38... Ne3+ {[%clk 0:00:26.3]} 0-1

[Event "*** SCC Grand Prix: Titled Tuesday Blitz"]
[Site "Chess.com"]
[Date "2020.07.07"]
[Round "9"]
[White "dosto07"]
[Black "Danfii"]
[Result "0-1"]
[WhiteElo "2205"]
[BlackElo "2351"]
[TimeControl "180+1"]
[EndTime "11:45:12 PDT"]
[Termination "Danfii won by resignation"]

1. e4 {[%clk 0:03:00.9]} 1... e5 {[%clk 0:02:59.8]} 2. Nf3 {[%clk 0:02:59.7]}
2... Nc6 {[%clk 0:02:59.9]} 3. Bc4 {[%clk 0:02:58.7]} 3... Bc5 {[%clk
0:02:59.4]} 4. d3 {[%clk 0:02:55.8]} 4... Nf6 {[%clk 0:02:59.4]} 5. c3 {[%clk
0:02:53.9]} 5... d6 {[%clk 0:02:59.5]} 6. a4 {[%clk 0:02:50.4]} 6... a6 {[%clk
0:02:59.5]} 7. Nbd2 {[%clk 0:02:50]} 7... h6 {[%clk 0:02:59.6]} 8. Nf1 {[%clk
0:02:49.7]} 8... O-O {[%clk 0:02:58.4]} 9. h3 {[%clk 0:02:49.1]} 9... Be6 {[%clk
0:02:58.4]} 10. Bxe6 {[%clk 0:02:28.2]} 10... fxe6 {[%clk 0:02:59.3]} 11. Be3
{[%clk 0:02:28]} 11... Bxe3 {[%clk 0:02:57.9]} 12. Nxe3 {[%clk 0:02:27.7]} 12...
d5 {[%clk 0:02:58.8]} 13. Qc2 {[%clk 0:02:21.8]} 13... Qe8 {[%clk 0:02:51.8]}
14. Ng4 {[%clk 0:02:12.9]} 14... Qh5 {[%clk 0:02:42.2]} 15. Ne3 {[%clk
0:01:32.4]} 15... Qg6 {[%clk 0:02:28.3]} 16. exd5 {[%clk 0:01:22.8]} 16... exd5
{[%clk 0:02:27.6]} 17. O-O-O {[%clk 0:01:23.2]} 17... d4 {[%clk 0:02:18.7]} 18.
Nc4 {[%clk 0:01:14.9]} 18... Qxg2 {[%clk 0:02:02.7]} 19. Nfd2 {[%clk 0:01:03.9]}
19... dxc3 {[%clk 0:01:50.9]} 20. bxc3 {[%clk 0:01:03.1]} 20... Qd5 {[%clk
0:01:47.6]} 21. Rhg1 {[%clk 0:00:55]} 21... Rad8 {[%clk 0:01:46.7]} 22. Rg3
{[%clk 0:00:52.5]} 22... Nh5 {[%clk 0:01:34.5]} 23. Re3 {[%clk 0:00:46.9]} 23...
Rxf2 {[%clk 0:01:33.1]} 24. Qb3 {[%clk 0:00:45.1]} 24... Nf4 {[%clk 0:01:09.4]}
25. Nxe5 {[%clk 0:00:22]} 25... Nxe5 {[%clk 0:01:06.6]} 26. Rxe5 {[%clk
0:00:20.1]} 26... Nxd3+ {[%clk 0:01:05.6]} 0-1

[Event "*** SCC Grand Prix: Titled Tuesday Blitz"]
[Site "Chess.com"]
[Date "2020.07.07"]
[Round "9"]
[White "Siniauski"]
[Black "Carnivoras"]
[Result "0-1"]
[WhiteElo "2460"]
[BlackElo "2604"]
[TimeControl "180+1"]
[EndTime "11:45:13 PDT"]
[Termination "Carnivoras won by resignation"]

1. e4 {[%clk 0:02:59.3]} 1... e5 {[%clk 0:02:59.4]} 2. Nf3 {[%clk 0:02:59.4]}
2... Nc6 {[%clk 0:03:00.3]} 3. Bb5 {[%clk 0:03:00]} 3... Nf6 {[%clk 0:03:00.3]}
4. d3 {[%clk 0:02:51.4]} 4... Bc5 {[%clk 0:02:59.2]} 5. c3 {[%clk 0:02:49.7]}
5... O-O {[%clk 0:02:57.8]} 6. Bg5 {[%clk 0:02:46.6]} 6... h6 {[%clk 0:02:57.1]}
7. Bh4 {[%clk 0:02:46.4]} 7... d6 {[%clk 0:02:56.9]} 8. Nbd2 {[%clk 0:02:41.6]}
8... Bg4 {[%clk 0:02:56.5]} 9. h3 {[%clk 0:02:40.5]} 9... Bh5 {[%clk 0:02:55.2]}
10. g4 {[%clk 0:02:27.6]} 10... Bg6 {[%clk 0:02:55.3]} 11. Qe2 {[%clk
0:02:21.3]} 11... a6 {[%clk 0:02:55]} 12. Bxc6 {[%clk 0:02:20.8]} 12... bxc6
{[%clk 0:02:55.9]} 13. Nf1 {[%clk 0:02:10.9]} 13... Rb8 {[%clk 0:02:55.2]} 14.
Ng3 {[%clk 0:02:08.9]} 14... Re8 {[%clk 0:02:51.9]} 15. O-O {[%clk 0:02:07.6]}
15... d5 {[%clk 0:02:51.9]} 16. b3 {[%clk 0:01:37.5]} 16... Qd6 {[%clk
0:02:45.1]} 17. Bxf6 {[%clk 0:01:31.6]} 17... Qxf6 {[%clk 0:02:42.9]} 18. c4
{[%clk 0:01:28.3]} 18... Qf4 {[%clk 0:02:30.5]} 19. Kg2 {[%clk 0:01:21.4]} 19...
a5 {[%clk 0:02:27.1]} 20. Rac1 {[%clk 0:01:08]} 20... dxe4 {[%clk 0:02:25]} 21.
dxe4 {[%clk 0:01:03]} 21... Bd4 {[%clk 0:02:25.2]} 22. Rfe1 {[%clk 0:00:16.5]}
22... c5 {[%clk 0:02:24.4]} 23. Qd2 {[%clk 0:00:13.1]} 23... Qf6 {[%clk
0:02:22.9]} 24. h4 {[%clk 0:00:09.7]} 24... a4 {[%clk 0:02:21.8]} 25. h5 {[%clk
0:00:09.7]} 25... Bh7 {[%clk 0:02:21.9]} 26. Rb1 {[%clk 0:00:09.5]} 26... axb3
{[%clk 0:02:20.5]} 27. axb3 {[%clk 0:00:10.4]} 27... Rb4 {[%clk 0:02:20.4]} 28.
Nxd4 {[%clk 0:00:10.1]} 28... exd4 {[%clk 0:02:19.6]} 29. Qd3 {[%clk 0:00:10]}
29... Qf4 {[%clk 0:02:18.6]} 30. Qf3 {[%clk 0:00:07.5]} 30... Qe5 {[%clk
0:02:16.5]} 31. Rb2 {[%clk 0:00:02.1]} 31... d3 {[%clk 0:02:11.9]} 32. Rd2
{[%clk 0:00:01.9]} 32... Rxb3 {[%clk 0:02:07.6]} 33. Rxd3 {[%clk 0:00:02.5]}
33... Rb2 {[%clk 0:02:07.9]} 34. Re2 {[%clk 0:00:02]} 34... Rb1 {[%clk
0:02:07.3]} 35. Rde3 {[%clk 0:00:01.8]} 35... Qa1 {[%clk 0:02:07]} 36. Nf5
{[%clk 0:00:01.5]} 36... Rg1+ {[%clk 0:02:06.1]} 37. Kh3 {[%clk 0:00:02]} 37...
Rh1+ {[%clk 0:02:06]} 38. Kg3 {[%clk 0:00:01.6]} 38... Qg1+ {[%clk 0:02:05.1]}
39. Qg2 {[%clk 0:00:02]} 39... Qd1 {[%clk 0:02:04.2]} 40. e5 {[%clk 0:00:01.1]}
40... Rg1 {[%clk 0:02:03.8]} 41. e6 {[%clk 0:00:01.1]} 41... Rxg2+ {[%clk
0:02:03.6]} 42. Kxg2 {[%clk 0:00:02]} 42... fxe6 {[%clk 0:02:03.3]} 43. Rxe6
{[%clk 0:00:02]} 43... Qxe2 {[%clk 0:02:03.1]} 44. Rxe2 {[%clk 0:00:01.8]} 44...
Rxe2 {[%clk 0:02:04]} 45. Ng3 {[%clk 0:00:02.2]} 45... Rc2 {[%clk 0:02:03.9]}
46. Kf3 {[%clk 0:00:01.6]} 46... Rxc4 {[%clk 0:02:04]} 0-1

[Event "*** SCC Grand Prix: Titled Tuesday Blitz"]
[Site "Chess.com"]
[Date "2020.07.07"]
[Round "9"]
[White "dolynachess"]
[Black "gross-aleks"]
[Result "1-0"]
[WhiteElo "2471"]
[BlackElo "2602"]
[TimeControl "180+1"]
[EndTime "11:45:19 PDT"]
[Termination "dolynachess won by resignation"]

1. d4 {[%clk 0:03:00.9]} 1... Nf6 {[%clk 0:02:56.1]} 2. c4 {[%clk 0:02:58.9]}
2... e6 {[%clk 0:02:56.1]} 3. g3 {[%clk 0:02:58.7]} 3... d5 {[%clk 0:02:55]} 4.
Bg2 {[%clk 0:02:59]} 4... dxc4 {[%clk 0:02:54.5]} 5. Nf3 {[%clk 0:02:59.2]} 5...
Nc6 {[%clk 0:02:53.6]} 6. O-O {[%clk 0:02:58.2]} 6... a6 {[%clk 0:02:53.1]} 7.
a4 {[%clk 0:02:57]} 7... Be7 {[%clk 0:02:51.8]} 8. Na3 {[%clk 0:02:51.5]} 8...
Bb4 {[%clk 0:02:49.3]} 9. Nxc4 {[%clk 0:02:48.9]} 9... O-O {[%clk 0:02:49.3]}
10. a5 {[%clk 0:02:17.8]} 10... Bd7 {[%clk 0:02:37.7]} 11. Qb3 {[%clk
0:02:16.9]} 11... Rb8 {[%clk 0:02:35.8]} 12. Rd1 {[%clk 0:02:15.2]} 12... Re8
{[%clk 0:02:30.8]} 13. Nfe5 {[%clk 0:02:14.3]} 13... Bd6 {[%clk 0:02:24.3]} 14.
Nxd7 {[%clk 0:02:02.1]} 14... Qxd7 {[%clk 0:02:23.3]} 15. Ne5 {[%clk 0:02:01.9]}
15... Qe7 {[%clk 0:02:12.1]} 16. Nxc6 {[%clk 0:01:52.2]} 16... bxc6 {[%clk
0:02:11.6]} 17. Qc4 {[%clk 0:01:52.6]} 17... c5 {[%clk 0:02:09]} 18. dxc5 {[%clk
0:01:37.9]} 18... Bxc5 {[%clk 0:02:08.6]} 19. Qxa6 {[%clk 0:01:37.5]} 19... Ng4
{[%clk 0:02:07.8]} 20. e3 {[%clk 0:01:33.5]} 20... Red8 {[%clk 0:02:06.9]} 21.
Qe2 {[%clk 0:01:30.5]} 21... Rxd1+ {[%clk 0:01:59.5]} 22. Qxd1 {[%clk
0:01:30.6]} 22... Ne5 {[%clk 0:01:54.4]} 23. a6 {[%clk 0:01:27.3]} 23... Rd8
{[%clk 0:01:51.5]} 24. Qe2 {[%clk 0:01:20.5]} 24... Ba7 {[%clk 0:01:50.6]} 25.
Bd2 {[%clk 0:01:13.8]} 25... c5 {[%clk 0:01:49.7]} 26. Bc3 {[%clk 0:01:10.1]}
26... Nd3 {[%clk 0:01:49.4]} 27. Rd1 {[%clk 0:01:03.3]} 27... c4 {[%clk
0:01:48.7]} 28. b3 {[%clk 0:00:53.2]} 28... Qa3 {[%clk 0:01:35.5]} 29. Qg4
{[%clk 0:00:46.2]} 29... g6 {[%clk 0:01:18.8]} 30. Qxc4 {[%clk 0:00:45.7]} 30...
Qd6 {[%clk 0:01:10.5]} 31. Bf1 {[%clk 0:00:35.8]} 1-0

[Event "*** SCC Grand Prix: Titled Tuesday Blitz"]
[Site "Chess.com"]
[Date "2020.07.07"]
[Round "9"]
[White "Klaus1995"]
[Black "NowInChess"]
[Result "0-1"]
[WhiteElo "1875"]
[BlackElo "2147"]
[TimeControl "180+1"]
[EndTime "11:45:20 PDT"]
[Termination "NowInChess won by resignation"]

1. e4 {[%clk 0:03:00.9]} 1... c5 {[%clk 0:02:58.9]} 2. Nf3 {[%clk 0:03:00.1]}
2... Nc6 {[%clk 0:02:58.6]} 3. d4 {[%clk 0:03:00.7]} 3... cxd4 {[%clk
0:02:58.8]} 4. Nxd4 {[%clk 0:03:01.6]} 4... e5 {[%clk 0:02:59]} 5. Nb5 {[%clk
0:03:01.1]} 5... a6 {[%clk 0:02:59.1]} 6. Nd6+ {[%clk 0:03:00.3]} 6... Bxd6
{[%clk 0:02:59.6]} 7. Qxd6 {[%clk 0:03:01.2]} 7... Qe7 {[%clk 0:02:59.8]} 8. Qd1
{[%clk 0:03:01.3]} 8... Nf6 {[%clk 0:02:58.1]} 9. Nc3 {[%clk 0:03:01.9]} 9... d6
{[%clk 0:02:48.9]} 10. Bg5 {[%clk 0:03:01.8]} 10... Be6 {[%clk 0:02:48.5]} 11.
Qd2 {[%clk 0:02:58.2]} 11... h6 {[%clk 0:02:38]} 12. Bh4 {[%clk 0:02:58]} 12...
Rd8 {[%clk 0:01:55]} 13. Bxf6 {[%clk 0:02:49.5]} 13... Qxf6 {[%clk 0:01:54.3]}
14. O-O-O {[%clk 0:02:50.2]} 14... O-O {[%clk 0:01:38.1]} 15. Kb1 {[%clk
0:02:50.3]} 15... Nd4 {[%clk 0:01:36.5]} 16. Bd3 {[%clk 0:02:48.9]} 16... b5
{[%clk 0:01:29.7]} 17. a3 {[%clk 0:02:47.3]} 17... Rc8 {[%clk 0:01:25.7]} 18.
Nd5 {[%clk 0:02:28.4]} 18... Bxd5 {[%clk 0:01:14.7]} 19. exd5 {[%clk 0:02:29.3]}
19... Rc5 {[%clk 0:01:07.3]} 20. c3 {[%clk 0:02:28.4]} 20... Nf5 {[%clk
0:00:48.6]} 21. g4 {[%clk 0:02:23.5]} 21... Nh4 {[%clk 0:00:24.7]} 22. Be4
{[%clk 0:02:18.6]} 22... Rfc8 {[%clk 0:00:20.1]} 23. Rhg1 {[%clk 0:02:11.7]}
23... g5 {[%clk 0:00:17.9]} 24. Bc2 {[%clk 0:02:02.2]} 24... Nf3 {[%clk
0:00:16.7]} 25. Qd3 {[%clk 0:02:02.3]} 25... Nxg1 {[%clk 0:00:14.6]} 26. Qh7+
{[%clk 0:02:01.8]} 26... Kf8 {[%clk 0:00:14.9]} 27. Rxg1 {[%clk 0:01:58.2]}
27... Rxd5 {[%clk 0:00:14.5]} 28. h4 {[%clk 0:01:55.8]} 28... Qg7 {[%clk
0:00:14]} 29. Qf5 {[%clk 0:01:55]} 29... Rdc5 {[%clk 0:00:13.4]} 30. hxg5 {[%clk
0:01:51.2]} 30... Qxg5 {[%clk 0:00:13.4]} 31. Qh7 {[%clk 0:01:49.4]} 31... Qg7
{[%clk 0:00:12.5]} 32. Qe4 {[%clk 0:01:48.7]} 32... Rc4 {[%clk 0:00:11.6]} 33.
Qd5 {[%clk 0:01:48]} 33... Rxg4 {[%clk 0:00:10.5]} 34. Qxd6+ {[%clk 0:01:48.3]}
34... Kg8 {[%clk 0:00:09.6]} 35. Qd7 {[%clk 0:01:47.8]} 35... Rxg1+ {[%clk
0:00:08.5]} 36. Ka2 {[%clk 0:01:48.7]} 36... Rf8 {[%clk 0:00:08.2]} 37. Bb3
{[%clk 0:01:47.8]} 37... Rg6 {[%clk 0:00:07.5]} 38. Qd3 {[%clk 0:01:46.7]} 38...
h5 {[%clk 0:00:07.4]} 39. Qe4 {[%clk 0:01:47]} 39... Qh7 {[%clk 0:00:07.3]} 40.
Qxe5 {[%clk 0:01:46.8]} 40... h4 {[%clk 0:00:06.8]} 41. Qh2 {[%clk 0:01:46.6]}
41... h3 {[%clk 0:00:06.7]} 42. f4 {[%clk 0:01:47.5]} 42... Rg2 {[%clk
0:00:06.6]} 43. f5 {[%clk 0:01:48.4]} 43... Rxh2 {[%clk 0:00:06]} 0-1

[Event "*** SCC Grand Prix: Titled Tuesday Blitz"]
[Site "Chess.com"]
[Date "2020.07.07"]
[Round "9"]
[White "TwentyHourADay"]
[Black "tamarozi99"]
[Result "0-1"]
[WhiteElo "2323"]
[BlackElo "1990"]
[TimeControl "180+1"]
[EndTime "11:45:21 PDT"]
[Termination "tamarozi99 won by resignation"]

1. d4 {[%clk 0:03:00.9]} 1... Nf6 {[%clk 0:02:57.7]} 2. Nf3 {[%clk 0:02:59.6]}
2... g6 {[%clk 0:02:57]} 3. g3 {[%clk 0:02:59.1]} 3... Bg7 {[%clk 0:02:57]} 4.
Bg2 {[%clk 0:02:59]} 4... d6 {[%clk 0:02:57.3]} 5. O-O {[%clk 0:02:59.2]} 5...
O-O {[%clk 0:02:57.8]} 6. b3 {[%clk 0:02:59.1]} 6... a6 {[%clk 0:02:54.5]} 7.
Bb2 {[%clk 0:02:58.8]} 7... Nc6 {[%clk 0:02:54.5]} 8. d5 {[%clk 0:02:57.2]} 8...
Na5 {[%clk 0:02:49.6]} 9. c4 {[%clk 0:02:52.1]} 9... c5 {[%clk 0:02:49.2]} 10.
Nbd2 {[%clk 0:02:49.5]} 10... b5 {[%clk 0:02:48.6]} 11. Qc2 {[%clk 0:02:47]}
11... Rb8 {[%clk 0:02:45]} 12. e4 {[%clk 0:02:45.9]} 12... Qb6 {[%clk
0:02:18.2]} 13. Rab1 {[%clk 0:02:42.7]} 13... e6 {[%clk 0:02:11.3]} 14. e5
{[%clk 0:02:31.9]} 14... dxe5 {[%clk 0:02:03.2]} 15. Bxe5 {[%clk 0:02:31]} 15...
exd5 {[%clk 0:02:00.5]} 16. Bxb8 {[%clk 0:02:28.5]} 16... Bf5 {[%clk 0:01:47.3]}
17. Qc3 {[%clk 0:02:21.9]} 17... d4 {[%clk 0:01:26.9]} 18. Qc1 {[%clk
0:02:13.5]} 18... Bxb1 {[%clk 0:01:26.2]} 19. Qxb1 {[%clk 0:02:07.3]} 19... Qxb8
{[%clk 0:01:20.6]} 20. Qd3 {[%clk 0:02:03.3]} 20... bxc4 {[%clk 0:01:18.4]} 21.
bxc4 {[%clk 0:02:02.8]} 21... Nc6 {[%clk 0:01:17.9]} 22. a3 {[%clk 0:01:58.4]}
22... Qd6 {[%clk 0:01:15]} 23. Ng5 {[%clk 0:01:56.4]} 23... Ne5 {[%clk
0:01:12.5]} 24. Qc2 {[%clk 0:01:53]} 24... d3 {[%clk 0:01:11]} 25. Qa4 {[%clk
0:01:51.4]} 25... Rb8 {[%clk 0:01:08.1]} 26. Nge4 {[%clk 0:01:42.4]} 26... Nxe4
{[%clk 0:01:07.7]} 27. Nxe4 {[%clk 0:01:41.3]} 27... Qd4 {[%clk 0:01:07.1]} 28.
Rd1 {[%clk 0:01:33.1]} 28... Nxc4 {[%clk 0:01:01.3]} 29. Qc6 {[%clk 0:01:20.8]}
29... Ne5 {[%clk 0:00:54.4]} 30. Qc7 {[%clk 0:01:19.1]} 30... Rf8 {[%clk
0:00:51.2]} 31. Nxc5 {[%clk 0:01:10.6]} 31... d2 {[%clk 0:00:44.2]} 32. Nb3
{[%clk 0:01:01.7]} 32... Nc4 {[%clk 0:00:43.1]} 33. Bf3 {[%clk 0:00:59.2]} 33...
Qc3 {[%clk 0:00:38.6]} 34. Nc5 {[%clk 0:00:49]} 34... Qxf3 {[%clk 0:00:35.5]}
0-1